fUSD/lending_fUSD_20241227
["ID","MTS","AMOUNT","RATE_DAILY","PERIOD"]
[346772602,1735277003197,-500.0,0.00012795,2]
[346772603,1735277003231,-506.71,0.00012795,2]
[346772604,1735277003266,-500.0,0.00012795,2]
[346772605,1735277003305,-600.78,0.00012795,2]
[346772606,1735277003339,-716.2,0.00012795,2]
[346772607,1735277003377,-500.0,0.00012795,2]
[346772608,1735277003411,-500.0,0.00012795,2]
[346772609,1735277003446,-695.27,0.00012795,2]
[346772610,1735277003481,-892.88,0.00012795,2]
[346772611,1735277003514,-500.0,0.00012795,2]
[346772612,1735277003548,-500.0,0.00012795,2]
[346772613,1735277003581,-527.84,0.00012795,2]
[346772614,1735277003612,-500.0,0.00012795,2]
[346772615,1735277003643,-2062.19,0.00012795,2]
[346772616,1735277003675,-500.0,0.00012795,2]
[346772617,1735277003705,-729.65,0.00012795,2]
[346772618,1735277003734,-500.0,0.00012795,2]
[346772619,1735277003764,-703.72,0.00012795,2]
[346772620,1735277003794,-1212.27,0.00012795,2]
[346772621,1735277003825,-804.24,0.00012795,2]
[346772622,1735277003854,-500.0,0.00012795,2]
[346772623,1735277003884,-640.75,0.00012795,2]
[346772624,1735277003914,-768.38,0.00012795,2]
[346772625,1735277003944,-540.24,0.00012795,2]
[346772626,1735277003975,-809.09,0.00012795,2]
[346772627,1735277004005,-901.69,0.00012795,2]
[346772628,1735277004037,-500.0,0.00012795,2]
[346772629,1735277004069,-547.41,0.00012795,2]
[346772630,1735277004104,-792.81,0.00012795,2]
[346772631,1735277004140,-1522.75,0.00012795,2]
[346772632,1735277004176,-500.0,0.00012795,2]
[346772633,1735277004214,-500.0,0.00012795,2]
[346772634,1735277004248,-500.0,0.00012795,2]
[346772635,1735277004281,-500.0,0.00012795,2]
[346772636,1735277004312,-500.0,0.00012795,2]
[346772637,1735277004344,-1395.75,0.00012795,2]
[346772638,1735277004375,-978.22,0.00012795,2]
[346772639,1735277004407,-1369.4,0.00012795,2]
[346772640,1735277004441,-500.0,0.00012795,2]
[346772641,1735277004474,-500.0,0.00012795,2]
[346772642,1735277004505,-500.0,0.00012795,2]
[346772643,1735277004536,-500.0,0.00012795,2]
[346772644,1735277004567,-500.0,0.00012795,2]
[346772645,1735277004598,-500.0,0.00012795,2]
[346772646,1735277004629,-500.0,0.00012795,2]
[346772647,1735277004661,-1759.87,0.00012795,2]
[346772648,1735277004692,-500.0,0.00012795,2]
[346772649,1735277004723,-500.0,0.00012795,2]
[346772650,1735277004755,-500.0,0.00012795,2]
[346772651,1735277004787,-1524.65,0.00012795,2]
[346772652,1735277004818,-546.37,0.00012795,2]
[346772653,1735277004852,-1295.72,0.00012795,2]
[346772654,1735277004884,-691.63,0.00012795,2]
[346772655,1735277004917,-804.5,0.00012795,2]
[346772656,1735277004951,-500.0,0.00012795,2]
[346772657,1735277004984,-500.0,0.00012795,2]
[346772658,1735277005017,-500.0,0.00012795,2]
[346772659,1735277005048,-1160.76,0.00012795,2]
[346772660,1735277005080,-810.36,0.00012795,2]
[346772661,1735277005131,-210.94043218,0.00012795,2]
[346772662,1735277005181,-3233.27,0.00012795,2]
[346772663,1735277005227,-500.0,0.00012795,2]
[346772664,1735277005276,-1528.54,0.00012795,2]
[346772665,1735277005329,-387.85116596,0.00012795,2]
[346772666,1735277005377,-2414.7,0.00012795,2]
[346772667,1735277005423,-500.0,0.00012795,2]
[346772668,1735277005471,-500.0,0.00012795,2]
[346772669,1735277005516,-937.42,0.00012795,2]
[346772670,1735277005556,-500.0,0.00012795,2]
[346772671,1735277005597,-1153.69,0.00012795,2]
[346772672,1735277005639,-3482.97,0.00012795,2]
[346772673,1735277005681,-1056.57,0.00012795,2]
[346772674,1735277005720,-500.0,0.00012795,2]
[346772675,1735277005759,-897.91,0.00012795,2]
[346772676,1735277005800,-1338.36,0.00012795,2]
[346772677,1735277005843,-4184.76,0.00012795,2]
[346772678,1735277005884,-500.0,0.00012795,2]
[346772679,1735277005926,-1077.37,0.00012795,2]
[346772680,1735277005969,-500.0,0.00012795,2]
[346772681,1735277006011,-830.25,0.00012795,2]
[346772682,1735277006058,-578.94201147,0.00012795,2]
[346772683,1735277006099,-500.0,0.00012795,2]
[346772684,1735277006140,-500.0,0.00012795,2]
[346772685,1735277006182,-2727.09,0.00012795,2]
[346772686,1735277006223,-1287.5,0.00012795,2]
[346772687,1735277006265,-1793.31,0.00012795,2]
[346772688,1735277006307,-500.0,0.00012795,2]
[346772689,1735277006351,-5902.77,0.00012795,2]
[346772690,1735277006393,-2264.44,0.00012795,2]
[346772691,1735277006438,-500.0,0.00012795,2]
[346772692,1735277006479,-6106.96,0.00012795,2]
[346772693,1735277006522,-596.5,0.00012795,2]
[346772694,1735277006564,-2104.46,0.00012795,2]
[346772695,1735277006603,-998.69,0.00012795,2]
[346772696,1735277006644,-500.0,0.00012795,2]
[346772697,1735277006682,-2900.87,0.00012795,2]
[346772698,1735277006720,-500.0,0.00012795,2]
[346772699,1735277006757,-1675.09,0.00012795,2]
[346772700,1735277006796,-816.34,0.00012795,2]
[346772701,1735277006834,-500.0,0.00012795,2]
[346772702,1735277006873,-3545.23,0.00012795,2]
[346772703,1735277006912,-1836.67,0.00012795,2]
[346772704,1735277006950,-5125.3,0.00012795,2]
[346772705,1735277006988,-500.0,0.00012795,2]
[346772706,1735277007033,-511.20854319,0.00012795,2]
[346772707,1735277007071,-2026.62,0.00012795,2]
[346772708,1735277007109,-500.0,0.00012795,2]
[346772709,1735277007149,-948.32,0.00012795,2]
[346772710,1735277007188,-2656.4,0.00012795,2]
[346772711,1735277007227,-3971.26,0.00012795,2]
[346772712,1735277007267,-708.36,0.00012795,2]
[346772713,1735277007307,-1778.45,0.00012795,2]
[346772714,1735277007345,-500.0,0.00012795,2]
[346772715,1735277007387,-500.0,0.00012795,2]
[346772716,1735277007428,-851.03,0.00012795,2]
[346772717,1735277007469,-811.52,0.00012795,2]
[346772718,1735277007508,-500.0,0.00012795,2]
[346772719,1735277007547,-500.0,0.00012795,2]
[346772720,1735277007584,-1897.32,0.00012795,2]
[346772721,1735277007622,-1798.98,0.00012795,2]
[346772722,1735277007660,-500.0,0.00012795,2]
[346772723,1735277007697,-500.0,0.00012795,2]
[346772724,1735277007733,-513.31830338,0.00012795,2]
[346772725,1735277007771,-5819.77,0.00012795,2]
[346772726,1735277007810,-500.0,0.00012795,2]
[346772727,1735277007854,-500.0,0.00012795,2]
[346772728,1735277007891,-500.0,0.00012795,2]
[346772729,1735277007931,-727.32,0.00012795,2]
[346772730,1735277007970,-1326.08,0.00012795,2]
[346772731,1735277008009,-500.0,0.00012795,2]
[346772732,1735277008049,-1206.98,0.00012795,2]
[346772733,1735277008092,-2625.98,0.00012795,2]
[346772734,1735277008135,-500.0,0.00012795,2]
[346772735,1735277008178,-655.81,0.00012795,2]
[346772736,1735277008220,-500.0,0.00012795,2]
[346772737,1735277008262,-500.0,0.00012795,2]
[346772738,1735277008307,-13526.87,0.00012795,2]
[346772739,1735277008350,-865.78,0.00012795,2]
[346772740,1735277008394,-500.0,0.00012795,2]
[346772741,1735277008435,-500.0,0.00012795,2]
[346772742,1735277008476,-527.78280877,0.00012795,2]
[346772743,1735277008517,-500.0,0.00012795,2]
[346772744,1735277008559,-2015.2,0.00012795,2]
[346772745,1735277008601,-383.48102787,0.00012795,2]
[346772746,1735277008644,-4134.12,0.00012795,2]
[346772747,1735277008686,-504.52,0.00012795,2]
[346772748,1735277008728,-881.98,0.00012795,2]
[346772749,1735277008772,-617.0,0.00012795,2]
[346772750,1735277009008,-2045.27,0.00012795,2]
[346772751,1735277009057,-1011.46,0.00012795,2]
[346772752,1735277009090,-693.21,0.00012795,2]
[346772753,1735277009123,-16628.36,0.00012795,2]
[346772754,1735277009156,-1349.72,0.00012795,2]
[346772755,1735277009187,-516.53,0.00012795,2]
[346772756,1735277009217,-9110.22,0.00012795,2]
[346772757,1735277009248,-953.84,0.00012795,2]
[346772758,1735277009286,-6200.38,0.00012795,2]
[346772759,1735277009319,-2703.87,0.00012795,2]
[346772760,1735277009351,-500.0,0.00012795,2]
[346772761,1735277009388,-995.9,0.00012795,2]
[346772762,1735277009423,-5884.94,0.00012795,2]
[346772763,1735277009456,-761.33,0.00012795,2]
[346772764,1735277009490,-7683.03,0.00012795,2]
[346772765,1735277009522,-1262.29,0.00012795,2]
[346772766,1735277009554,-1419.491883,0.00012796,2]
[346772767,1735277009586,-1193.326939,0.00012796,2]
[346772768,1735277009616,-500.0,0.00012796,2]
[346772769,1735277009649,-500.0,0.00012796,2]
[346772770,1735277009680,-500.0,0.00012796,2]
[346772771,1735277009712,-500.0,0.00012796,2]
[346772772,1735277009746,-500.0,0.00012796,2]
[346772773,1735277009778,-500.0,0.00012796,2]
[346772774,1735277009810,-500.0,0.00012796,2]
[346772775,1735277009842,-500.0,0.00012796,2]
[346772776,1735277009876,-500.0,0.00012796,2]
[346772777,1735277009909,-500.0,0.00012796,2]
[346772778,1735277009943,-500.0,0.00012796,2]
[346772779,1735277009976,-500.0,0.00012796,2]
[346772780,1735277010008,-516.09,0.00012796,2]
[346772781,1735277010039,-500.0,0.00012796,2]
[346772782,1735277010073,-500.0,0.00012796,2]
[346772783,1735277010105,-500.0,0.00012796,2]
[346772784,1735277010137,-585.56,0.00012796,2]
[346772785,1735277010167,-801.26,0.00012796,2]
[346772786,1735277010199,-500.0,0.00012796,2]
[346772787,1735277010230,-513.01389371,0.00012796,2]
[346772788,1735277010262,-500.0,0.00012796,2]
[346772789,1735277010294,-862.86,0.00012796,2]
[346772790,1735277010327,-500.0,0.00012796,2]
[346772791,1735277010358,-742.17,0.00012796,2]
[346772792,1735277010389,-513.45,0.00012796,2]
[346772793,1735277010429,-500.0,0.00012796,2]
[346772794,1735277010461,-500.0,0.00012796,2]
[346772795,1735277010491,-500.0,0.00012796,2]
[346772796,1735277010522,-522.47,0.00012796,2]
[346772797,1735277010555,-500.0,0.00012796,2]
[346772798,1735277010586,-500.0,0.00012796,2]
[346772799,1735277010615,-500.0,0.00012796,2]
[346772800,1735277010646,-712.54,0.00012796,2]
[346772801,1735277010676,-500.0,0.00012796,2]
[346772802,1735277010706,-500.0,0.00012796,2]
[346772803,1735277010737,-500.0,0.00012796,2]
[346772804,1735277010768,-500.0,0.00012796,2]
[346772805,1735277010799,-500.0,0.00012796,2]
[346772806,1735277010829,-500.0,0.00012796,2]
[346772807,1735277010860,-500.0,0.00012796,2]
[346772808,1735277010890,-500.0,0.00012796,2]
[346772809,1735277010920,-500.0,0.00012796,2]
[346772810,1735277010950,-500.0,0.00012796,2]
[346772811,1735277010981,-500.0,0.00012796,2]
[346772812,1735277011011,-1373.92,0.00012796,2]
[346772813,1735277011042,-563.2,0.00012796,2]
[346772814,1735277011072,-751.52,0.00012796,2]
[346772815,1735277011102,-681.72,0.00012796,2]
[346772816,1735277011134,-1971.36,0.00012796,2]
[346772817,1735277011164,-500.0,0.00012796,2]
[346772818,1735277011194,-880.91,0.00012796,2]
[346772819,1735277011225,-685.0,0.00012796,2]
[346772820,1735277011255,-500.0,0.00012796,2]
[346772821,1735277011289,-1529.87,0.00012796,2]
[346772822,1735277011322,-159.61799936,0.00012796,2]
[346772823,1735277011354,-500.0,0.00012796,2]
[346772824,1735277011384,-500.0,0.00012796,2]
[346772825,1735277011415,-506.53,0.00012796,2]
[346772826,1735277011446,-500.0,0.00012796,2]
[346772827,1735277011478,-500.0,0.00012796,2]
[346772828,1735277011508,-500.0,0.00012796,2]
[346772829,1735277011540,-500.0,0.00012796,2]
[346772830,1735277011571,-500.0,0.00012796,2]
[346772831,1735277011601,-500.0,0.00012796,2]
[346772832,1735277011633,-3249.87,0.00012796,2]
[346772833,1735277011665,-509.8,0.00012796,2]
[346772834,1735277011696,-500.0,0.00012796,2]
[346772835,1735277011726,-500.0,0.00012796,2]
[346772836,1735277011757,-500.0,0.00012796,2]
[346772837,1735277011791,-1946.31,0.00012796,2]
[346772838,1735277011822,-500.0,0.00012796,2]
[346772839,1735277011853,-500.0,0.00012796,2]
[346772840,1735277011883,-500.0,0.00012796,2]
[346772841,1735277011914,-500.0,0.00012796,2]
[346772842,1735277011945,-1235.77,0.00012796,2]
[346772843,1735277011976,-500.0,0.00012796,2]
[346772844,1735277012007,-500.0,0.00012796,2]
[346772845,1735277012038,-4080.46,0.00012796,2]
[346772846,1735277012069,-500.0,0.00012796,2]
[346772847,1735277012102,-965.08,0.00012796,2]
[346772848,1735277012134,-500.0,0.00012796,2]
[346772849,1735277012166,-570.68,0.00012796,2]
[346772850,1735277012198,-673.83,0.00012796,2]
[346772851,1735277012231,-604.35,0.00012796,2]
[346772852,1735277012265,-4521.66,0.00012796,2]
[346772853,1735277012301,-612.16,0.00012796,2]
[346772854,1735277012334,-3078.13,0.00012796,2]
[346772855,1735277012367,-910.04,0.00012796,2]
[346772856,1735277012399,-391.48147375,0.00012796,2]
[346772857,1735277012434,-695.6,0.00012796,2]
[346772858,1735277012466,-248.46250385,0.00012796,2]
[346772859,1735277012498,-729.04,0.00012796,2]
[346772860,1735277012529,-500.0,0.00012796,2]
[346772861,1735277012563,-500.0,0.00012796,2]
[346772862,1735277012595,-3405.46,0.00012796,2]
[346772863,1735277012627,-1050.54,0.00012796,2]
[346772864,1735277012658,-500.0,0.00012796,2]
[346772865,1735277012689,-850.29,0.00012796,2]
[346772866,1735277012721,-13298.58,0.00012796,2]
[346772867,1735277012752,-7256.42,0.00012796,2]
[346772868,1735277012782,-500.0,0.00012796,2]
[346772869,1735277012818,-1395.75,0.00012796,2]
[346772870,1735277012849,-524.76,0.00012796,2]
[346772871,1735277012881,-1424.67,0.00012796,2]
[346772872,1735277012913,-784.32,0.00012796,2]
[346772873,1735277012946,-8585.93,0.00012796,2]
[346772874,1735277012977,-500.0,0.00012796,2]
[346772875,1735277013008,-4461.26,0.00012796,2]
[346772876,1735277013041,-4932.67,0.00012796,2]
[346772877,1735277013073,-500.0,0.00012796,2]
[346772878,1735277013366,-4590.04,0.00012796,2]
[346772879,1735277013403,-500.0,0.00012796,2]
[346772880,1735277013441,-2363.98,0.00012796,2]
[346772881,1735277013477,-565.42,0.00012796,2]
[346772882,1735277013511,-907.6,0.00012796,2]
[346772883,1735277013543,-565.42,0.00012796,2]
[346772884,1735277013577,-1316.8,0.00012796,2]
[346772885,1735277013612,-17784.62,0.00012796,2]
[346772886,1735277013644,-544.04,0.00012796,2]
[346772887,1735277013677,-2375.23,0.00012796,2]
[346772888,1735277013709,-2196.64,0.00012796,2]
[346772889,1735277013741,-500.0,0.00012796,2]
[346772890,1735277013773,-3534.81,0.00012796,2]
[346772891,1735277013809,-500.0,0.00012796,2]
[346772892,1735277013842,-865.96,0.00012796,2]
[346772893,1735277013875,-500.0,0.00012796,2]
[346772894,1735277013908,-12431.41,0.00012796,2]
[346772895,1735277013942,-547.75,0.00012796,2]
[346772896,1735277013975,-2716.36,0.00012796,2]
[346772897,1735277014006,-1289.4,0.00012796,2]
[346772898,1735277014039,-504.64548687,0.00012796,2]
[346772899,1735277014072,-4667.7,0.00012796,2]
[346772900,1735277014109,-500.0,0.00012796,2]
[346772901,1735277014143,-953.97,0.00012796,2]
[346772902,1735277014175,-500.0,0.00012796,2]
[346772903,1735277014208,-1196.04,0.00012796,2]
[346772904,1735277014241,-197.37371207,0.00012796,2]
[346772905,1735277014273,-500.0,0.00012796,2]
[346772906,1735277014310,-500.0,0.00012796,2]
[346772907,1735277014343,-161.7344789,0.00012796,2]
[346772908,1735277014377,-704.09,0.00012796,2]
[346772909,1735277014410,-1470.58,0.00012796,2]
[346772910,1735277014442,-1255.0,0.00012796,2]
[346772911,1735277014476,-500.0,0.00012796,2]
[346772912,1735277014508,-4031.31,0.00012796,2]
[346772913,1735277014540,-500.0,0.00012796,2]
[346772914,1735277014574,-500.0,0.00012796,2]
[346772915,1735277014606,-695.06,0.00012796,2]
[346772916,1735277014638,-500.0,0.00012796,2]
[346772917,1735277014670,-509.32388201,0.00012796,2]
[346772918,1735277014701,-500.0,0.00012796,2]
[346772919,1735277014735,-16915.55,0.00012796,2]
[346772920,1735277014768,-500.0,0.00012796,2]
[346772921,1735277014801,-2566.57,0.00012796,2]
[346772922,1735277014834,-500.0,0.00012796,2]
[346772923,1735277014869,-781.68,0.00012796,2]
[346772924,1735277014905,-833.76,0.00012796,2]
[346772925,1735277014939,-852.84,0.00012796,2]
[346772926,1735277014975,-2635.62,0.00012796,2]
[346772927,1735277015009,-231.4317668,0.00012796,2]
[346772928,1735277015042,-9121.87,0.00012796,2]
[346772929,1735277015074,-1800.13,0.00012796,2]
[346772930,1735277015108,-500.0,0.00012796,2]
[346772931,1735277015142,-646.95485057,0.00012797,2]
[346772932,1735277015175,-910.43,0.00012797,2]
[346772933,1735277015207,-521.15,0.00012797,2]
[346772934,1735277015240,-508.87,0.00012797,2]
[346772935,1735277015275,-581.66367621,0.00012797,2]
[346772936,1735277015311,-500.0,0.00012797,2]
[346772937,1735277015346,-500.0,0.00012797,2]
[346772938,1735277015382,-500.0,0.00012797,2]
[346772939,1735277015418,-658.21,0.00012797,2]
[346772940,1735277015455,-491.07347167,0.00012797,2]
[346772941,1735277015488,-560.65,0.00012797,2]
[346772942,1735277015521,-500.0,0.00012797,2]
[346772943,1735277015556,-500.0,0.00012797,2]
[346772944,1735277015589,-1111.68,0.00012797,2]
[346772945,1735277015621,-1720.38,0.00012797,2]
[346772946,1735277015652,-727.35,0.00012797,2]
[346772947,1735277015686,-500.0,0.00012797,2]
[346772948,1735277015719,-724.95,0.00012797,2]
[346772949,1735277015751,-500.0,0.00012797,2]
[346772950,1735277015785,-500.0,0.00012797,2]
[346772951,1735277015818,-1264.26,0.00012797,2]
[346772952,1735277015859,-529.61,0.00012797,2]
[346772953,1735277015891,-1107.67,0.00012797,2]
[346772954,1735277015925,-500.0,0.00012797,2]
[346772955,1735277015958,-500.0,0.00012797,2]
[346772956,1735277015991,-881.62,0.00012797,2]
[346772957,1735277016023,-500.0,0.00012797,2]
[346772958,1735277016056,-900.59,0.00012797,2]
[346772959,1735277016088,-500.0,0.00012797,2]
[346772960,1735277016122,-500.0,0.00012797,2]
[346772961,1735277016153,-1341.27,0.00012797,2]
[346772962,1735277016186,-500.0,0.00012797,2]
[346772963,1735277016217,-1651.6,0.00012797,2]
[346772964,1735277016248,-500.0,0.00012797,2]
[346772965,1735277016281,-500.0,0.00012797,2]
[346772966,1735277016314,-800.25,0.00012797,2]
[346772967,1735277016346,-777.38,0.00012797,2]
[346772968,1735277016377,-500.0,0.00012797,2]
[346772969,1735277016408,-1293.12,0.00012797,2]
[346772970,1735277016439,-500.0,0.00012797,2]
[346772971,1735277016470,-1048.77,0.00012797,2]
[346772972,1735277016499,-500.0,0.00012797,2]
[346772973,1735277016530,-1429.0,0.00012797,2]
[346772974,1735277016561,-500.0,0.00012797,2]
[346772975,1735277016592,-813.59,0.00012797,2]
[346772976,1735277016696,-500.0,0.00012797,2]
[346772977,1735277016726,-1758.36,0.00012797,2]
[346772978,1735277016756,-500.0,0.00012797,2]
[346772979,1735277016787,-1120.19,0.00012797,2]
[346772980,1735277016827,-1463.73,0.00012797,2]
[346772981,1735277016858,-955.0,0.00012797,2]
[346772982,1735277016890,-971.12,0.00012797,2]
[346772983,1735277016920,-500.0,0.00012797,2]
[346772984,1735277016950,-1339.31,0.00012797,2]
[346772985,1735277016980,-672.23,0.00012797,2]
[346772986,1735277017011,-1169.07,0.00012797,2]
[346772987,1735277017042,-777.79,0.00012797,2]
[346772988,1735277017073,-500.0,0.00012797,2]
[346772989,1735277017103,-500.0,0.00012797,2]
[346772990,1735277017134,-900.2,0.00012797,2]
[346772991,1735277017166,-1922.35,0.00012797,2]
[346772992,1735277017197,-1070.28,0.00012797,2]
[346772993,1735277017228,-807.41,0.00012797,2]
[346772994,1735277017262,-545.19,0.00012797,2]
[346772995,1735277017295,-1122.07,0.00012797,2]
[346772996,1735277017329,-518.94665192,0.00012797,2]
[346772997,1735277017361,-500.0,0.00012797,2]
[346772998,1735277017394,-1419.87,0.00012797,2]
[346772999,1735277017429,-509.8,0.00012797,2]
[346773000,1735277017463,-520.03980168,0.00012797,2]
[346773001,1735277017496,-1140.73,0.00012797,2]
[346773002,1735277017527,-1216.93,0.00012797,2]
[346773003,1735277017559,-500.0,0.00012797,2]
[346773004,1735277017591,-1001.69,0.00012797,2]
[346773005,1735277017622,-500.0,0.00012797,2]
[346773006,1735277017656,-631.31,0.00012797,2]
[346773007,1735277017687,-1850.59,0.00012797,2]
[346773008,1735277017717,-567.80049998,0.00012797,2]
[346773009,1735277017748,-516.68,0.00012797,2]
[346773010,1735277017777,-500.0,0.00012797,2]
[346773011,1735277017810,-500.0,0.00012797,2]
[346773012,1735277017841,-1390.86,0.00012797,2]
[346773013,1735277017874,-1897.14,0.00012797,2]
[346773014,1735277017906,-774.58,0.00012797,2]
[346773015,1735277017937,-500.0,0.00012797,2]
[346773016,1735277017969,-718.27,0.00012797,2]
[346773017,1735277018003,-500.0,0.00012797,2]
[346773018,1735277018037,-500.0,0.00012797,2]
[346773019,1735277018072,-500.0,0.00012797,2]
[346773020,1735277018106,-1832.47,0.00012797,2]
[346773021,1735277018138,-1796.56,0.00012797,2]
[346773022,1735277018171,-1160.24,0.00012797,2]
[346773023,1735277018202,-1206.1,0.00012797,2]
[346773024,1735277018233,-500.0,0.00012797,2]
[346773025,1735277018264,-676.37,0.00012797,2]
[346773026,1735277018297,-1326.64,0.00012797,2]
[346773027,1735277018329,-976.99,0.00012797,2]
[346773028,1735277018362,-1300.92,0.00012797,2]
[346773029,1735277018393,-597.01,0.00012797,2]
[346773030,1735277018423,-500.0,0.00012797,2]
[346773031,1735277018453,-1134.18,0.00012797,2]
[346773032,1735277018486,-500.0,0.00012797,2]
[346773033,1735277018518,-500.0,0.00012797,2]
[346773034,1735277018549,-1879.91,0.00012797,2]
[346773035,1735277018582,-500.0,0.00012797,2]
[346773036,1735277018612,-941.89,0.00012797,2]
[346773037,1735277018643,-850.8,0.00012797,2]
[346773038,1735277018674,-1564.38,0.00012797,2]
[346773039,1735277018704,-1667.66,0.00012797,2]
[346773040,1735277018735,-816.17,0.00012797,2]
[346773041,1735277018771,-500.0,0.00012797,2]
[346773042,1735277018805,-812.79,0.00012797,2]
[346773043,1735277018839,-974.29,0.00012797,2]
[346773044,1735277018870,-2506.43,0.00012797,2]
[346773045,1735277018916,-708.98,0.00012797,2]
[346773046,1735277018953,-1003.67,0.00012797,2]
[346773047,1735277018985,-910.02,0.00012797,2]
[346773048,1735277019020,-500.0,0.00012797,2]
[346773049,1735277019056,-1290.29,0.00012797,2]
[346773050,1735277019087,-500.0,0.00012797,2]
[346773051,1735277019118,-1306.56,0.00012797,2]
[346773052,1735277019150,-583.12,0.00012797,2]
[346773053,1735277019180,-810.76,0.00012797,2]
[346773054,1735277019212,-1299.29,0.00012797,2]
[346773055,1735277019244,-590.59,0.00012797,2]
[346773056,1735277019275,-952.22,0.00012797,2]
[346773057,1735277019310,-1855.61,0.00012797,2]
[346773058,1735277019342,-1424.91,0.00012797,2]
[346773059,1735277019376,-500.0,0.00012797,2]
[346773060,1735277019408,-500.13,0.00012797,2]
[346773061,1735277019442,-1644.68,0.00012797,2]
[346773062,1735277019474,-687.9,0.00012797,2]
[346773063,1735277019507,-1537.27,0.00012797,2]
[346773064,1735277019540,-1025.98,0.00012797,2]
[346773065,1735277019572,-500.0,0.00012797,2]
[346773066,1735277019603,-500.0,0.00012797,2]
[346773067,1735277019633,-500.0,0.00012797,2]
[346773068,1735277019671,-500.0,0.00012797,2]
[346773069,1735277019703,-670.19,0.00012797,2]
[346773070,1735277019742,-568.34,0.00012797,2]
[346773071,1735277019776,-500.0,0.00012797,2]
[346773072,1735277019811,-500.0,0.00012797,2]
[346773073,1735277019844,-500.0,0.00012797,2]
[346773074,1735277019879,-938.76,0.00012797,2]
[346773075,1735277019913,-867.6,0.00012797,2]
[346773076,1735277019947,-500.0,0.00012797,2]
[346773077,1735277019981,-529.76,0.00012797,2]
[346773078,1735277020013,-500.0,0.00012797,2]
[346773079,1735277020049,-500.0,0.00012797,2]
[346773080,1735277020083,-509.98,0.00012797,2]
[346773081,1735277020116,-1026.92,0.00012797,2]
[346773082,1735277020153,-2318.93,0.00012797,2]
[346773083,1735277020188,-1959.42,0.00012797,2]
[346773084,1735277020220,-1660.75,0.00012797,2]
[346773085,1735277020254,-500.0,0.00012797,2]
[346773086,1735277020290,-503.5117409,0.00012797,2]
[346773087,1735277020322,-1800.13,0.00012797,2]
[346773088,1735277020360,-2956.15,0.00012797,2]
[346773089,1735277020395,-2175.77,0.00012797,2]
[346773090,1735277020430,-500.0,0.00012798,2]
[346773091,1735277020466,-500.0,0.00012798,2]
[346773092,1735277020499,-500.0,0.00012798,2]
[346773093,1735277020543,-735.59,0.00012798,2]
[346773094,1735277020581,-544.8,0.00012798,2]
[346773095,1735277020616,-500.0,0.00012798,2]
[346773096,1735277020651,-500.0,0.00012798,2]
[346773097,1735277020686,-923.64,0.00012798,2]
[346773098,1735277020722,-500.0,0.00012798,2]
[346773099,1735277020755,-1027.08,0.00012798,2]
[346773100,1735277020792,-500.0,0.00012798,2]
[346773101,1735277020828,-500.0,0.00012798,2]